fUST/lending_fUST_20240919
["ID","MTS","AMOUNT","RATE_DAILY","PERIOD"]
[338476303,1726686340583,-500.0,0.00018997,2]
[338476304,1726686340609,-500.0,0.00018997,2]
[338476305,1726686340633,-500.0,0.00018997,2]
[338476306,1726686340663,-500.0,0.00018997,2]
[338476307,1726686340687,-500.0,0.00018997,2]
[338476308,1726686340711,-500.0,0.00018997,2]
[338476309,1726686340735,-500.0,0.00018997,2]
[338476310,1726686340758,-500.0,0.00018997,2]
[338476311,1726686340781,-500.0,0.00018997,2]
[338476312,1726686340805,-300.0,0.00018997,2]
[338476313,1726686340829,-500.0,0.00018997,2]
[338476314,1726686340852,-500.0,0.00018997,2]
[338476315,1726686340876,-500.0,0.00018997,2]
[338476316,1726686340909,-500.0,0.00018997,2]
[338476317,1726686340936,-500.0,0.00018997,2]
[338476318,1726686340960,-500.0,0.00018997,2]
[338476319,1726686340984,-500.0,0.00018997,2]
[338476320,1726686341010,-500.0,0.00018997,2]
[338476321,1726686341035,-500.0,0.00018997,2]
[338476322,1726686341222,-9000.0,0.00019,2]
[338476323,1726686341246,-3000.0,0.00019,2]
[338476324,1726686341268,-1000.0,0.00019,2]
[338476325,1726686341294,-3000.0,0.0001901,2]
[338476326,1726686341317,-3000.0,0.0001902,2]
[338476327,1726686341338,-3000.0,0.0001903,2]
[338476328,1726686341361,-3000.0,0.0001904,2]
[338476329,1726686341383,-199.49021043,0.00019048,2]
[338476330,1726686341408,-3000.0,0.0001905,2]
[338476331,1726686341429,-3000.0,0.0001906,2]
[338476332,1726686341452,-199.49021043,0.00019063,2]
[338476333,1726686341475,-1110.3667489,0.00019064,2]
[338476334,1726686341499,-3000.0,0.0001907,2]
[338476335,1726686341521,-199.49021043,0.00019078,2]
[338476336,1726686341543,-3969.04007498,0.00019078,2]
[338476337,1726686341566,-3000.0,0.0001908,2]
[338476338,1726686341591,-14656.41322465,0.0001909,3]
[338476339,1726686356110,-3000.0,0.00019078,2]
[338476340,1726686356132,-18002.38022955,0.0001909,3]
[338476341,1726686356160,-5312.327997,0.0001909,2]
[338476342,1726686356182,-15827.7923987,0.0001909,3]
[338476343,1726686356202,-1000.0,0.000191,2]
[338476344,1726686356223,-1831.7022247,0.000191,2]
[338476345,1726686356246,-150.112233,0.000191,2]
[338476346,1726686356267,-150.112233,0.000191,2]
[338476347,1726686356287,-6426.90685718,0.00019142,2]
[338476348,1726686356307,-597.1581254,0.00019145,2]
[338476349,1726686356330,-500.0,0.00019147,2]
[338476350,1726686356353,-315.35436735,0.00019147,2]
[338476353,1726686438155,-343.926663,0.00017808,2]
[338476354,1726686438182,-1000.0,0.000189,2]
[338476355,1726686438205,-3984.33933274,0.00019,2]
[338476356,1726686438228,-300.0,0.00019146,2]
[338476357,1726686438251,-300.0,0.00019146,2]
[338476358,1726686438285,-500.0,0.00019147,2]
[338476359,1726686438308,-500.0,0.00019147,2]
[338476360,1726686438329,-500.0,0.00019147,2]
[338476361,1726686438352,-500.0,0.00019147,2]
[338476362,1726686438379,-500.0,0.00019147,2]
[338476363,1726686438403,-350.57917763,0.00019147,2]
[338476364,1726686438426,-500.0,0.00019147,2]
[338476365,1726686438450,-500.0,0.00019147,2]
[338476366,1726686438480,-500.0,0.00019147,2]
[338476367,1726686438502,-500.0,0.00019147,2]
[338476368,1726686438537,-500.0,0.00019147,2]
[338476369,1726686438561,-500.0,0.00019147,2]
[338476370,1726686438584,-500.0,0.00019147,2]
[338476371,1726686438607,-500.0,0.00019147,2]
[338476372,1726686438630,-500.0,0.00019147,2]
[338476373,1726686438653,-500.0,0.00019147,2]
[338476374,1726686438678,-500.0,0.00019147,2]
[338476375,1726686438704,-500.0,0.00019147,2]
[338476376,1726686438729,-500.0,0.00019147,2]
[338476377,1726686438759,-500.0,0.00019147,2]
[338476378,1726686438798,-215.70511074,0.00019147,2]
[338476379,1726686438823,-163293.967271,0.00019148,3]
[338476380,1726686438848,-79138.9619936,0.00019148,3]
[338476381,1726686438871,-151.0,0.00019157,2]
[338476382,1726686438894,-151.0,0.00019157,2]
[338476383,1726686438917,-32658.7934542,0.00019163,3]
[338476384,1726686438942,-15827.7923987,0.00019163,3]
[338476385,1726686438965,-150.369,0.00019164,2]
[338476386,1726686438988,-150.276,0.00019164,2]
[338476387,1726686439012,-151.936,0.00019164,2]
[338476388,1726686439045,-524.0,0.00019164,2]
[338476389,1726686439068,-1216.0,0.00019164,2]
[338476390,1726686439089,-523.221,0.00019164,2]
[338476391,1726686439110,-287.15148665,0.00019167,2]
[338476392,1726686439131,-157.90698642,0.00019167,2]
[338476393,1726686439370,-500.0,0.00019167,2]
[338476394,1726686439396,-500.0,0.00019167,2]
[338476395,1726686439421,-263.13026385,0.00019167,2]
[338476396,1726686439445,-500.0,0.00019167,2]
[338476397,1726686439468,-500.0,0.00019167,2]
[338476398,1726686439490,-500.0,0.00019167,2]
[338476399,1726686439511,-500.0,0.00019167,2]
[338476400,1726686439541,-500.0,0.00019167,2]
[338476401,1726686439564,-306.02444367,0.00019167,2]
[338476402,1726686439588,-500.0,0.00019167,2]
[338476403,1726686439609,-500.0,0.00019167,2]
[338476404,1726686439631,-500.0,0.00019167,2]
[338476405,1726686439653,-500.0,0.00019167,2]
[338476406,1726686439675,-500.0,0.00019167,2]
[338476407,1726686439697,-514.21711057,0.00019167,2]
[338476408,1726686439718,-151.0,0.00019168,2]
[338476409,1726686439740,-151.0,0.00019168,2]
[338476410,1726686439761,-151.0,0.00019168,2]
[338476411,1726686439792,-151.0,0.00019168,2]
[338476412,1726686439814,-151.0,0.00019168,2]
[338476413,1726686439837,-210.778268,0.00019168,2]
[338476414,1726686439859,-151.0,0.00019168,2]
[338476415,1726686439881,-212.271645,0.00019168,2]
[338476416,1726686439902,-212.271645,0.00019168,2]
[338476417,1726686439926,-13809.66684123,0.00019168,3]
[338476418,1726686441107,-18514.606032,0.00019168,3]
[338476466,1726686632354,-158.635833,0.00018154,2]
[338476468,1726686632363,-600.0,0.00018411,2]
[338476471,1726686632375,-600.0,0.00018603,2]
[338476474,1726686632385,-600.0,0.00018794,2]
[338476476,1726686632398,-1000.0,0.00019,2]
[338476478,1726686632415,-3270.03520044,0.00019043,2]
[338476606,1726686638507,-3156.87165674,0.00019043,2]
[338476608,1726686638517,-3486.2969162,0.00019057,2]
[338476610,1726686638527,-429.83578887,0.00019073,2]
[338476639,1726686640417,-569.49428514,0.00019073,2]
[338476641,1726686640427,-300.0,0.00019134,2]
[338476642,1726686640436,-31098.06545875,0.0001915,2]
[338476644,1726686640447,-500.0,0.00019157,2]
[338476645,1726686640456,-468.41167897,0.00019157,2]
[338476646,1726686640465,-58836.0063046,0.00019158,3]
[338476647,1726686640475,-100379.661711,0.00019158,3]
[338476648,1726686640484,-19612.0021015,0.00019168,3]
[338476649,1726686640494,-33459.887237,0.00019168,3]
[338476650,1726686640504,-156896.016812,0.00019168,3]
[338476652,1726686640513,-167299.436185,0.00019168,3]
[338476653,1726686640523,-164.0,0.0001917,2]
[338476654,1726686640533,-500.0,0.00019173,2]
[338476655,1726686640542,-500.0,0.00019173,2]
[338476656,1726686640552,-288.2482218,0.00019173,2]
[338476657,1726686640561,-500.0,0.00019173,2]
[338476658,1726686640571,-333.06869054,0.00019173,2]
[338476659,1726686640580,-500.0,0.00019173,2]
[338476660,1726686640590,-500.0,0.00019173,2]
[338476661,1726686640600,-323.29462538,0.00019173,2]
[338476662,1726686640609,-500.0,0.00019173,2]
[338476663,1726686640622,-500.0,0.00019173,2]
[338476664,1726686640632,-500.0,0.00019173,2]
[338476665,1726686640642,-500.0,0.00019173,2]
[338476666,1726686640651,-500.0,0.00019173,2]
[338476667,1726686640661,-500.0,0.00019173,2]
[338476668,1726686640670,-500.0,0.00019173,2]
[338476669,1726686640680,-500.0,0.00019173,2]
[338476670,1726686640689,-500.0,0.00019173,2]
[338476671,1726686640698,-500.0,0.00019173,2]
[338476672,1726686640707,-500.0,0.00019173,2]
[338476673,1726686640716,-500.0,0.00019173,2]
[338476674,1726686640726,-500.0,0.00019173,2]
[338476675,1726686640735,-5440.43729117,0.00019177,2]
[338476676,1726686640744,-160.0,0.00019177,2]
[338476677,1726686640753,-160.0,0.00019177,2]
[338476678,1726686640762,-3137.5825664,0.00019178,5]
[338476697,1726686643484,-3293.23929315,0.00019178,5]
[338476698,1726686643496,-13775.89443244,0.00019178,5]
[338476699,1726686643506,-3639.93361999,0.00019178,5]
[338476700,1726686643516,-500.0,0.00019178,2]
[338476701,1726686643526,-500.0,0.00019178,2]
[338476702,1726686643535,-500.0,0.00019178,2]
[338476703,1726686643545,-151.0,0.00019178,2]
[338476704,1726686643555,-151.0,0.00019178,2]
[338476705,1726686643564,-151.0,0.00019178,2]
[338476706,1726686643573,-151.0,0.00019178,2]
[338476707,1726686643584,-500.0,0.00019178,2]
[338476708,1726686643593,-151.0,0.00019178,2]
[338476709,1726686643603,-151.0,0.00019178,2]
[338476710,1726686643614,-190.795562,0.00019178,2]
[338476711,1726686643624,-500.0,0.00019178,2]
[338476712,1726686643634,-600.32,0.00019178,2]
[338476713,1726686643643,-500.0,0.00019178,2]
[338476714,1726686643653,-151.0,0.00019178,2]
[338476715,1726686643662,-151.0,0.00019178,2]
[338476716,1726686643672,-151.0,0.00019178,2]
[338476717,1726686643682,-500.0,0.00019178,2]
[338476718,1726686643692,-500.0,0.00019178,2]
[338476719,1726686643702,-500.0,0.00019178,2]
[338476720,1726686643711,-500.0,0.00019178,2]
[338476721,1726686643720,-500.0,0.00019178,2]
[338476722,1726686643730,-1056.91,0.00019178,2]
[338476723,1726686643739,-753.22,0.00019178,2]
[338476724,1726686643749,-822.6,0.00019178,2]
[338476725,1726686643758,-151.0,0.00019178,2]
[338476726,1726686643767,-1207.93,0.00019178,2]
[338476727,1726686643777,-500.0,0.00019178,2]
[338476728,1726686643786,-2318.47,0.00019178,2]
[338476729,1726686643795,-500.0,0.00019178,2]
[338476730,1726686643805,-500.0,0.00019178,2]
[338476731,1726686643815,-500.0,0.00019178,2]
[338476732,1726686643824,-635.93,0.00019178,2]
[338476733,1726686643834,-980.94,0.00019178,2]
[338476734,1726686643843,-500.0,0.00019178,2]
[338476735,1726686643853,-500.0,0.00019178,2]
[338476736,1726686643863,-1073.87,0.00019178,2]
[338476737,1726686643873,-2073.24,0.00019178,2]
[338476738,1726686643882,-500.0,0.00019178,2]
[338476739,1726686643892,-500.0,0.00019178,2]
[338476740,1726686643901,-500.0,0.00019178,2]
[338476741,1726686643910,-151.0,0.00019178,2]
[338476742,1726686643920,-151.0,0.00019178,2]
[338476743,1726686643930,-151.0,0.00019178,2]
[338476744,1726686643940,-631.2349965,0.00019178,2]
[338476745,1726686643950,-500.0,0.00019178,2]
[338476746,1726686643960,-1083.59,0.00019178,2]
[338476747,1726686643969,-500.0,0.00019178,2]
[338476748,1726686643978,-500.0,0.00019178,2]
[338476749,1726686643989,-509.4,0.00019178,2]
[338476750,1726686643998,-500.0,0.00019178,2]
[338476751,1726686644008,-500.0,0.00019178,2]
[338476752,1726686644018,-1112.36,0.00019178,2]
[338476753,1726686644028,-500.0,0.00019178,2]
[338476754,1726686644037,-500.0,0.00019178,2]
[338476755,1726686644047,-500.0,0.00019178,2]
[338476756,1726686644056,-151.0,0.00019178,2]
[338476757,1726686644066,-500.0,0.00019178,2]
[338476758,1726686644075,-154.139077,0.00019178,2]
[338476759,1726686644085,-637.97,0.00019178,2]
[338476760,1726686644094,-1105.8,0.00019178,2]
[338476761,1726686644103,-500.0,0.00019178,2]
[338476762,1726686644113,-1127.57,0.00019178,2]
[338476763,1726686644122,-677.5,0.00019178,2]
[338476764,1726686644132,-500.0,0.00019178,2]
[338476765,1726686644141,-500.0,0.00019178,2]
[338476766,1726686644151,-1016.51,0.00019178,2]
[338476767,1726686644160,-277.20909129,0.00019178,2]
[338476768,1726686644173,-500.0,0.00019178,2]
[338476769,1726686644183,-662.97,0.00019178,2]
[338476770,1726686644193,-1085.51,0.00019178,2]
[338476771,1726686644202,-500.0,0.00019178,2]
[338476772,1726686644212,-500.0,0.00019178,2]
[338476773,1726686644223,-219.85106024,0.00019178,2]
[338476774,1726686644233,-500.0,0.00019178,2]
[338476775,1726686644243,-878.38,0.00019178,2]
[338476776,1726686644252,-1047.10008671,0.00019178,2]
[338476777,1726686644984,-500.0,0.00019173,2]
[338476778,1726686644994,-1076.06991329,0.00019178,2]
[338476779,1726686645004,-500.0,0.00019178,2]
[338476780,1726686645014,-500.0,0.00019178,2]
[338476781,1726686645024,-500.0,0.00019178,2]
[338476782,1726686645034,-500.0,0.00019178,2]
[338476783,1726686645044,-500.0,0.00019178,2]
[338476784,1726686645053,-500.0,0.00019178,2]
[338476785,1726686645063,-643.35,0.00019178,2]
[338476786,1726686645072,-500.0,0.00019178,2]
[338476787,1726686645082,-683.38,0.00019178,2]
[338476788,1726686645092,-500.0,0.00019178,2]
[338476789,1726686645101,-500.0,0.00019178,2]
[338476790,1726686645109,-500.0,0.00019178,2]
[338476791,1726686645118,-500.0,0.00019178,2]
[338476792,1726686645127,-500.0,0.00019178,2]
[338476793,1726686645137,-500.0,0.00019178,2]
[338476794,1726686645146,-250.0,0.00019178,2]
[338476795,1726686645156,-500.0,0.00019178,2]
[338476796,1726686645165,-721.45,0.00019178,2]
[338476797,1726686645174,-500.0,0.00019178,2]
[338476798,1726686645184,-500.0,0.00019178,2]
[338476799,1726686645193,-500.0,0.00019178,2]
[338476800,1726686645203,-3740.27,0.00019178,2]
[338476801,1726686645213,-1082.32,0.00019178,2]
[338476802,1726686645222,-500.0,0.00019178,2]
[338476803,1726686645231,-513.63778498,0.00019178,2]
[338476804,1726686645242,-500.0,0.00019178,2]
[338476805,1726686645252,-500.0,0.00019178,2]
[338476806,1726686645262,-500.0,0.00019178,2]
[338476807,1726686645272,-500.0,0.00019178,2]
[338476808,1726686645283,-500.0,0.00019178,2]
[338476809,1726686645293,-500.0,0.00019178,2]
[338476810,1726686645304,-500.0,0.00019178,2]
[338476811,1726686645317,-500.0,0.00019178,2]
[338476812,1726686645336,-500.0,0.00019178,2]
[338476813,1726686645356,-500.0,0.00019178,2]
[338476814,1726686645367,-500.0,0.00019178,2]
[338476815,1726686645377,-500.0,0.00019178,2]
[338476816,1726686645387,-500.0,0.00019178,2]
[338476817,1726686645398,-514.12,0.00019178,2]
[338476818,1726686645409,-500.0,0.00019178,2]
[338476819,1726686645420,-546.67,0.00019178,2]
[338476820,1726686645430,-500.0,0.00019178,2]
[338476821,1726686645441,-621.18,0.00019178,2]
[338476822,1726686645451,-500.0,0.00019178,2]
[338476823,1726686645460,-508.06,0.00019178,2]
[338476824,1726686645471,-151.0,0.00019178,2]
[338476825,1726686645481,-151.0,0.00019178,2]
[338476826,1726686645491,-500.0,0.00019178,2]
[338476827,1726686645501,-151.0,0.00019178,2]
[338476828,1726686645511,-151.0,0.00019178,2]
[338476829,1726686645521,-151.0,0.00019178,2]
[338476830,1726686645531,-151.0,0.00019178,2]
[338476831,1726686645541,-1179.45,0.00019178,2]
[338476832,1726686645551,-617.01864428,0.00019178,2]
[338476833,1726686645561,-500.0,0.00019178,2]
[338476834,1726686645571,-500.0,0.00019178,2]
[338476835,1726686645581,-1390.71,0.00019178,2]
[338476836,1726686645591,-500.0,0.00019178,2]
[338476837,1726686645600,-500.0,0.00019178,2]
[338476838,1726686645610,-500.0,0.00019178,2]
[338476839,1726686645620,-500.0,0.00019178,2]
[338476840,1726686645630,-560.6,0.00019178,2]
[338476841,1726686645640,-500.0,0.00019178,2]
[338476842,1726686645650,-195.58183072,0.00019178,2]
[338476843,1726686645660,-500.0,0.00019178,2]
[338476844,1726686645670,-500.0,0.00019178,2]
[338476845,1726686645679,-170.908554,0.00019178,2]
[338476846,1726686645690,-500.0,0.00019178,2]
[338476847,1726686645699,-1171.28,0.00019178,2]
[338476848,1726686645709,-151.0,0.00019178,2]
[338476850,1726686645719,-1029.93,0.00019178,2]
[338476853,1726686645741,-151.0,0.00019178,2]
[338476855,1726686645752,-151.0,0.00019178,2]
[338476857,1726686645762,-1610.3,0.00019178,2]
[338476859,1726686645773,-872.89,0.00019178,2]
[338476860,1726686645783,-500.0,0.00019178,2]
[338476862,1726686645793,-1830.33,0.00019178,2]
[338476863,1726686645803,-500.0,0.00019178,2]
[338476865,1726686645813,-151.0,0.00019178,2]
[338476867,1726686645823,-151.0,0.00019178,2]
[338476868,1726686645833,-151.0,0.00019178,2]
[338476869,1726686645843,-151.0,0.00019178,2]
[338476870,1726686645853,-151.0,0.00019178,2]
[338476871,1726686645863,-151.0,0.00019178,2]
[338476873,1726686645873,-500.0,0.00019178,2]
[338476874,1726686645883,-500.0,0.00019178,2]
[338476875,1726686645893,-500.0,0.00019178,2]
[338476877,1726686645907,-151.0,0.00019178,2]
[338476878,1726686645917,-151.0,0.00019178,2]
[338476879,1726686645927,-151.0,0.00019178,2]
[338476880,1726686645937,-152.108278,0.00019178,2]
[338476881,1726686645947,-500.0,0.00019178,2]
[338476882,1726686645957,-500.0,0.00019178,2]
[338476883,1726686645967,-500.0,0.00019178,2]
[338476885,1726686645978,-500.0,0.00019178,2]
[338476886,1726686645988,-600.93,0.00019178,2]
[338476887,1726686645998,-1696.49,0.00019178,2]
[338476888,1726686646008,-151.0,0.00019178,2]
[338476890,1726686646019,-151.0,0.00019178,2]
[338476891,1726686646029,-1798.18,0.00019178,2]
[338476892,1726686646039,-500.0,0.00019178,2]
[338476893,1726686646049,-530.64,0.00019178,2]
[338476894,1726686646059,-500.0,0.00019178,2]
[338476895,1726686646068,-151.0,0.00019178,2]
[338476896,1726686646080,-500.0,0.00019178,2]
[338476897,1726686646091,-151.0,0.00019178,2]
[338476898,1726686646101,-151.0,0.00019178,2]
[338476899,1726686646112,-151.0,0.00019178,2]
[338476900,1726686646122,-151.0,0.00019178,2]
[338476901,1726686646134,-151.0,0.00019178,2]
[338476902,1726686646144,-500.0,0.00019178,2]
[338476903,1726686646155,-1365.32,0.00019178,2]
[338476904,1726686646165,-1344.85,0.00019178,2]
[338476905,1726686646176,-1046.08,0.00019178,2]
[338476906,1726686646186,-500.0,0.00019178,2]
[338476907,1726686646195,-151.0,0.00019178,2]
[338476908,1726686646205,-151.0,0.00019178,2]
[338476909,1726686646216,-151.0,0.00019178,2]
[338476910,1726686646226,-151.0,0.00019178,2]
[338476911,1726686646236,-151.0,0.00019178,2]
[338476912,1726686646246,-151.0,0.00019178,2]
[338476913,1726686646255,-153.476718,0.00019178,2]
[338476914,1726686646266,-151.0,0.00019178,2]
[338476915,1726686646276,-151.0,0.00019178,2]
[338476916,1726686646286,-151.0,0.00019178,2]
[338476917,1726686646296,-151.0,0.00019178,2]
[338476918,1726686646307,-151.0,0.00019178,2]
[338476919,1726686646321,-151.0,0.00019178,2]
[338476920,1726686646330,-500.0,0.00019178,2]
[338476921,1726686646340,-209.165452,0.00019178,2]
[338476922,1726686646355,-151.0,0.00019178,2]
[338476923,1726686646365,-151.0,0.00019178,2]
[338476924,1726686646376,-500.0,0.00019178,2]
[338476925,1726686646387,-2181.79,0.00019178,2]
[338476926,1726686646397,-627.69259752,0.00019178,2]
[338476927,1726686646925,-97.59740248,0.00019178,2]
[338476928,1726686646935,-865.97,0.00019178,2]
[338476929,1726686646945,-500.0,0.00019178,2]
[338476930,1726686646956,-1168.28,0.00019178,2]
[338476931,1726686646970,-500.0,0.00019178,2]
[338476932,1726686646980,-351.337253,0.00019178,2]
[338476934,1726686646990,-351.337253,0.00019178,2]
[338476935,1726686646999,-351.337253,0.00019178,2]
[338476936,1726686647009,-351.337253,0.00019178,2]
[338476937,1726686647019,-351.337253,0.00019178,2]
[338476938,1726686647029,-351.337253,0.00019178,2]
[338476939,1726686647039,-351.337253,0.00019178,2]
[338476940,1726686647048,-452.39182652,0.00019178,2]
[338476941,1726686647061,-548.53406688,0.00019178,2]
[338476942,1726686647073,-613.5885,0.00019178,2]
[338476943,1726686647085,-197.6056066,0.00019178,2]
[338476944,1726686647095,-232.78035125,0.00019178,2]
[338476947,1726686647688,-267.21964875,0.00019178,2]
[338476948,1726686647699,-500.0,0.00019178,2]
[338476949,1726686647711,-777.28,0.00019178,2]
[338476950,1726686647722,-500.0,0.00019178,2]
[338476951,1726686647733,-366.94056256,0.00019178,2]
[338476952,1726686647742,-500.0,0.00019178,2]
[338476953,1726686647752,-500.0,0.00019178,2]
[338476954,1726686647761,-500.0,0.00019178,2]
[338476955,1726686647772,-1488.86,0.00019178,2]
[338476956,1726686647783,-500.0,0.00019178,2]
[338476957,1726686647794,-151.0,0.00019178,2]
[338476958,1726686647804,-1055.6,0.00019178,2]
[338476959,1726686647814,-500.0,0.00019178,2]
[338476960,1726686647824,-500.0,0.00019178,2]
[338476961,1726686647834,-500.0,0.00019178,2]
[338476962,1726686647844,-309.0,0.00019178,2]
[338476963,1726686647853,-500.0,0.00019178,2]
[338476964,1726686647862,-500.0,0.00019178,2]
[338476965,1726686647872,-951.77,0.00019178,2]
[338476966,1726686647882,-151.0,0.00019178,2]
[338476967,1726686647892,-500.0,0.00019178,2]
[338476968,1726686647903,-151.0,0.00019178,2]
[338476969,1726686647914,-783.33,0.00019178,2]
[338476970,1726686647939,-151.0,0.00019178,2]
[338476971,1726686647949,-151.0,0.00019178,2]
[338476972,1726686647969,-1886.39,0.00019178,2]
[338476973,1726686647983,-500.0,0.00019178,2]
[338476974,1726686647993,-151.0,0.00019178,2]
[338476975,1726686648004,-522.29,0.00019178,2]
[338476976,1726686648015,-500.0,0.00019178,2]
[338476977,1726686648025,-151.0,0.00019178,2]
[338476978,1726686648035,-151.0,0.00019178,2]
[338476979,1726686648045,-151.0,0.00019178,2]
[338476980,1726686648055,-151.0,0.00019178,2]
[338476981,1726686648064,-151.0,0.00019178,2]
[338476982,1726686648075,-1193.4,0.00019178,2]
[338476983,1726686648085,-500.0,0.00019178,2]
[338476984,1726686648095,-151.0,0.00019178,2]
[338476985,1726686648106,-2023.44,0.00019178,2]
[338476986,1726686648117,-151.0,0.00019178,2]
[338476987,1726686648128,-151.0,0.00019178,2]
[338476988,1726686648138,-223.49469264,0.00019178,2]
[338476989,1726686648149,-151.0,0.00019178,2]
[338476990,1726686648161,-701.16,0.00019178,2]
[338476991,1726686648171,-500.0,0.00019178,2]
[338476992,1726686648181,-500.0,0.00019178,2]
[338476993,1726686648191,-506.47369279,0.00019178,2]
[338476994,1726686648201,-500.0,0.00019178,2]
[338476995,1726686648211,-1110.84,0.00019178,2]
[338476996,1726686648221,-839.44,0.00019178,2]
[338476997,1726686648231,-3575.25,0.00019178,2]
[338476998,1726686648241,-500.0,0.00019178,2]
[338476999,1726686648250,-1184.15,0.00019178,2]
[338477000,1726686648260,-500.0,0.00019178,2]
[338477001,1726686648269,-4000.79,0.00019178,2]
[338477002,1726686648279,-500.0,0.00019178,2]
[338477003,1726686648289,-446.91319126,0.00019178,2]
[338477004,1726686648973,-53.08680874,0.00019178,2]
[338477005,1726686648983,-500.0,0.00019178,2]
[338477006,1726686648992,-513.42,0.00019178,2]
[338477007,1726686649001,-500.0,0.00019178,2]
[338477008,1726686649010,-500.0,0.00019178,2]
[338477009,1726686649020,-607.7,0.00019178,2]
[338477010,1726686649030,-1147.05,0.00019178,2]
[338477011,1726686649039,-0.15750122,0.00019178,2]
[338477012,1726686649052,-499.84249878,0.00019178,2]
[338477013,1726686649062,-500.0,0.00019178,2]
[338477014,1726686649072,-500.0,0.00019178,2]
[338477015,1726686649082,-500.0,0.00019178,2]
[338477016,1726686649091,-605.83,0.00019178,2]
[338477017,1726686649100,-910.77,0.00019178,2]
[338477018,1726686649110,-500.0,0.00019178,2]
[338477019,1726686649121,-500.0,0.00019178,2]
[338477020,1726686649131,-500.0,0.00019178,2]
[338477021,1726686649142,-500.0,0.00019178,2]
[338477022,1726686649151,-500.0,0.00019178,2]
[338477023,1726686649161,-500.0,0.00019178,2]
[338477024,1726686649170,-1523.73,0.00019178,2]
[338477025,1726686649179,-500.0,0.00019178,2]
[338477026,1726686649189,-2782.54,0.00019178,2]
[338477027,1726686649198,-500.0,0.00019178,2]
[338477028,1726686649208,-727.51,0.00019178,2]
[338477029,1726686649218,-573.21,0.00019178,2]
[338477030,1726686649228,-500.0,0.00019178,2]
[338477031,1726686649240,-151.0,0.00019178,2]
[338477032,1726686649250,-500.0,0.00019178,2]
[338477033,1726686649259,-151.0,0.00019178,2]
[338477034,1726686649268,-151.0,0.00019178,2]
[338477035,1726686649278,-151.0,0.00019178,2]
[338477036,1726686649287,-779.57,0.00019178,2]
[338477037,1726686649296,-151.0,0.00019178,2]
[338477038,1726686649306,-1166.91,0.00019178,2]
[338477039,1726686649317,-151.0,0.00019178,2]
[338477040,1726686649327,-151.0,0.00019178,2]
[338477041,1726686649337,-156.855621,0.00019178,2]
[338477042,1726686649347,-1323.16,0.00019178,2]
[338477043,1726686649357,-1170.86,0.00019178,2]
[338477044,1726686649367,-500.0,0.00019178,2]
[338477045,1726686649376,-2130.48,0.00019178,2]
[338477046,1726686649386,-500.0,0.00019178,2]
[338477047,1726686649396,-500.0,0.00019178,2]
[338477048,1726686649405,-1063.26,0.00019178,2]
[338477049,1726686649415,-500.0,0.00019178,2]
[338477050,1726686649424,-2322.57,0.00019178,2]
[338477051,1726686649434,-1046.07,0.00019178,2]
[338477052,1726686649443,-500.0,0.00019178,2]